fUSD/lending_fUSD_20260227
["ID","MTS","AMOUNT","RATE_DAILY","PERIOD"]
[406769888,1772171441069,-483.09649044,0.00018521,2]
[406769889,1772171441079,-520.55026084,0.00018521,2]
[406769890,1772171441089,-1000.0,0.00018521,2]
[406769891,1772171441100,-2141.72334736,0.00018812,2]
[406769892,1772171441109,-1131.98391739,0.00019033,2]
[406769893,1772171441118,-1203.60049859,0.00019068,2]
[406769894,1772171441127,-412.74,0.00019178,30]
[406769895,1772171441137,-200.0,0.00019558,5]
[406769896,1772171441150,-150.53885821,0.0002,20]
[406769897,1772171441159,-1000.0,0.00020003,7]
[406769898,1772171441168,-4713.87839038,0.00020067,2]
[406769899,1772171441179,-266.88550582,0.00020558,5]
[406769900,1772171441188,-150.0,0.00021001,2]
[406769901,1772171441197,-150.0,0.00021001,120]
[406769902,1772171441207,-504.0,0.00021091,7]
[406769903,1772171441217,-200.0,0.00021521,6]
[406769904,1772171441227,-300.0,0.0002188,7]
[406769905,1772171441237,-5000.0,0.00021918,2]
[406769906,1772171441247,-199.72,0.00021918,2]
[406769907,1772171441256,-199.72,0.00021918,2]
[406769908,1772171441266,-199.72,0.00021918,2]
[406769909,1772171441276,-703.0,0.00022009,10]
[406769910,1772171441286,-1176.0,0.00022009,10]
[406769911,1772171441296,-561.7114369,0.0002206,8]
[406769912,1772171441305,-412.74,0.00022062,30]
[406769913,1772171441314,-152.8213546,0.00022129,2]
[406769914,1772171441325,-199.72,0.00022137,2]
[406769915,1772171441334,-358.31062079,0.00022329,8]
[406769916,1772171441343,-199.72,0.00022356,2]
[406769917,1772171441354,-199.72,0.00022575,2]
[406769918,1772171441363,-5118.29,0.0002274,2]
[406769919,1772171441372,-199.72,0.00022795,2]
[406769920,1772171441381,-199.72,0.00023014,2]
[406769921,1772171441389,-224.65,0.00023207,2]
[406769922,1772171441399,-3007.19,0.00023207,2]
[406769923,1772171441408,-199.72,0.00023233,2]
[406769924,1772171441417,-199.72,0.00023452,2]
[406769925,1772171441426,-4713.87839038,0.00023526,2]
[406769926,1772171441435,-199.72,0.00023671,2]
[406769927,1772171441445,-827.82528244,0.00023772,10]
[406769928,1772171441454,-199.72,0.0002389,2]
[406769929,1772171441463,-199.72,0.0002411,2]
[406769930,1772171441473,-504.0,0.00024192,10]
[406769931,1772171441483,-2141.72334736,0.00024235,2]
[406769932,1772171441493,-199.72,0.00024329,2]
[406769933,1772171441503,-199.72,0.00024548,2]
[406769934,1772171441512,-199.72,0.00024548,2]
[406769935,1772171441521,-2000.0,0.00024657,2]
[406769936,1772171441530,-1000.0,0.00024658,2]
[406769937,1772171441539,-150.0,0.00024658,2]
[406769938,1772171441548,-152.8213546,0.00024895,2]
[406769939,1772171441557,-412.74,0.00024946,30]
[406769940,1772171441566,-300.0,0.00025103,11]
[406769941,1772171441575,-200.0,0.00025113,10]
[406769942,1772171441584,-1166.66886564,0.0002514,12]
[406769943,1772171441593,-150.0,0.0002589,2]
[406769944,1772171441603,-422.72533856,0.00026387,2]
[406769945,1772171441612,-199.72,0.00026594,2]
[406769946,1772171441621,-300.0,0.00026866,15]
[406769947,1772171441630,-4713.87839038,0.00026986,2]
[406769948,1772171441640,-150.0,0.00027185,2]
[406769949,1772171441649,-207.96,0.00027247,14]
[406769950,1772171441658,-504.0,0.00027292,13]
[406769951,1772171441667,-155.90421945,0.00027369,2]
[406769952,1772171441676,-2000.0,0.00027397,12]
[406769953,1772171441685,-720.19,0.000275,2]
[406769954,1772171441694,-152.8213546,0.00027662,2]
[406769955,1772171441703,-412.74,0.0002783,30]
[406769956,1772171441715,-2346.00955474,0.00027894,2]
[406769957,1772171441726,-9057.84330682,0.00027894,2]
[406769958,1772171441735,-500.0,0.00028186,30]
[406769959,1772171441744,-150.0,0.00028544,2]
[406769960,1772171441754,-300.0,0.00028629,19]
[406769961,1772171441764,-199.72,0.00028639,2]
[406769962,1772171441773,-200.0,0.00028704,18]
[406769963,1772171441784,-2000.0,0.00029,2]
[406769964,1772171441794,-2141.72334736,0.00029658,2]
[406769965,1772171441805,-150.0,0.00029971,2]
[406769966,1772171441814,-4000.0,0.00029981,2]
[406769967,1772171441824,-182.68165991,0.0003,7]
[406769968,1772171441834,-182.68165991,0.0003,7]
[406769969,1772171441844,-2022.00864656,0.00030136,22]
[406769970,1772171441854,-504.0,0.00030392,15]
[406769971,1772171441863,-152.8213546,0.00030428,2]
[406769972,1772171441873,-4713.87839038,0.00030445,2]
[406769973,1772171441883,-199.72,0.00030685,2]
[406769974,1772171441894,-412.74,0.00030714,30]
[406769975,1772171441903,-4000.0,0.00030731,2]
[406769976,1772171441912,-160.0,0.00030944,3]
[406769977,1772171441922,-500.0,0.00031421,2]
[406769978,1772171441931,-1340.0,0.00031422,2]
[406769979,1772171441940,-1041.0,0.00031422,2]
[406769980,1772171441950,-618.0,0.00031422,2]
[406769981,1772171441959,-3498.0,0.00031422,2]
[406769982,1772171441968,-150.0,0.00031422,2]
[406769983,1772171441977,-1277.0,0.00031422,2]
[406769984,1772171441987,-921.0,0.00031422,2]
[406769985,1772171441998,-464.491,0.00031422,2]
[406769986,1772171442007,-219.985,0.00031422,2]
[406769987,1772171442016,-150.0,0.0003147,2]
[406769988,1772171442026,-4000.0,0.0003148,2]
[406769989,1772171442035,-26743.0,0.000317,2]
[406769990,1772171442044,-300.0,0.00031852,30]
[406769991,1772171442053,-4000.0,0.0003223,2]
[406769992,1772171442063,-200.0,0.00032295,32]
[406769993,1772171442072,-2000.0,0.000327,2]
[406769994,1772171442081,-375.95495348,0.00032877,5]
[406769995,1772171442091,-4000.0,0.00032979,2]
[406769996,1772171442100,-10192.36,0.00033,2]
[406769997,1772171442110,-1439.46,0.00033,14]
[406769998,1772171442119,-6180.31,0.00033,14]
[406769999,1772171442128,-4728.22,0.00033,14]
[406770000,1772171442138,-5531.0,0.00033,3]
[406770001,1772171442150,-150.0,0.00033043,2]
[406770002,1772171442159,-152.8213546,0.00033194,2]
[406770003,1772171442169,-504.0,0.00033493,18]
[406770004,1772171442179,-412.74,0.00033598,30]
[406770005,1772171442187,-4713.87839038,0.00033905,2]
[406770006,1772171442196,-5118.29,0.00033973,2]
[406770007,1772171442205,-174.00015664,0.00034,30]
[406770008,1772171442216,-160.0,0.00034,30]
[406770009,1772171442225,-5531.0,0.000343,5]
[406770010,1772171442234,-1340.0,0.00034422,2]
[406770011,1772171442242,-1041.0,0.00034422,2]
[406770012,1772171442252,-618.0,0.00034422,2]
[406770013,1772171442261,-3498.0,0.00034422,2]
[406770014,1772171442271,-1277.0,0.00034422,2]
[406770015,1772171442280,-921.0,0.00034422,2]
[406770016,1772171442289,-413.0,0.00034422,2]
[406770017,1772171442298,-150.0,0.00034696,2]
[406770018,1772171442307,-1000.0,0.00034712,7]
[406770019,1772171442318,-1500.0,0.00034795,2]
[406770020,1772171442327,-1000.0,0.00034986,7]
[406770021,1772171442335,-200.0,0.00035,3]
[406770022,1772171442344,-2141.72334736,0.00035081,2]
[406770023,1772171442354,-1000.0,0.0003526,7]
[406770024,1772171442363,-5978.0,0.00035331,5]
[406770026,1772171442373,-1000.0,0.00035534,7]
[406770029,1772171442382,-159.70078536,0.00035589,30]
[406770030,1772171442391,-544.21519612,0.00035616,5]
[406770031,1772171442401,-213.67,0.00035886,46]
[406770032,1772171442410,-253.271,0.00035888,30]
[406770033,1772171442419,-1000.0,0.0003601,2]
[406770035,1772171442429,-1000.0,0.0003601,2]
[406770037,1772171442439,-1000.0,0.0003601,2]
[406770038,1772171442448,-1000.0,0.0003601,2]
[406770039,1772171442458,-1000.0,0.0003601,2]
[406770040,1772171442467,-300.0,0.00036026,43]
[406770041,1772171442476,-1000.0,0.00036027,2]
[406770042,1772171442485,-1000.0,0.00036027,2]
[406770043,1772171442495,-1000.0,0.00036027,2]
[406770044,1772171442504,-1000.0,0.00036027,2]
[406770045,1772171442513,-1000.0,0.00036027,2]
[406770046,1772171442522,-253.271,0.00036088,30]
[406770047,1772171442531,-5000.0,0.00036099,10]
[406770048,1772171442540,-6180.31,0.000361,14]
[406770049,1772171442550,-4728.22,0.000361,14]
[406770050,1772171442560,-2517.99,0.00036117,10]
[406770051,1772171442569,-4407.49,0.00036147,10]
[406770052,1772171442578,-5000.0,0.00036154,10]
[406770053,1772171442587,-5000.0,0.00036176,10]
[406770054,1772171442596,-1313.54,0.00036209,10]
[406770055,1772171442606,-5000.0,0.00036242,10]
[406770056,1772171442615,-5000.0,0.00036249,10]
[406770057,1772171442624,-5000.0,0.00036263,10]
[406770058,1772171442633,-5000.0,0.00036263,10]
[406770059,1772171442642,-500.0,0.00036272,30]
[406770060,1772171442651,-14956.31,0.0003628,10]
[406770061,1772171442660,-253.271,0.00036288,30]
[406770062,1772171442669,-10192.36,0.000363,2]
[406770063,1772171442680,-1439.46,0.000363,14]
[406770064,1772171442688,-191.03,0.00036307,10]
[406770065,1772171442698,-5000.0,0.00036321,10]
[406770066,1772171442708,-5000.0,0.00036324,10]
[406770067,1772171442719,-160.67,0.00036326,10]
[406770068,1772171442730,-5000.0,0.00036344,10]
[406770069,1772171442741,-25000.0,0.00036383,10]
[406770070,1772171442750,-2000.0,0.000364,2]
[406770071,1772171442759,-150.0,0.0003643,2]
[406770072,1772171442769,-500.0,0.00036432,2]
[406770073,1772171442780,-5000.0,0.00036433,10]
[406770074,1772171442789,-412.74,0.00036482,30]
[406770075,1772171442798,-25000.0,0.00036484,10]
[406770076,1772171442807,-5000.0,0.00036486,10]
[406770077,1772171442816,-253.271,0.00036488,30]
[406770078,1772171442825,-5000.0,0.00036503,10]
[406770079,1772171442835,-5000.0,0.0003651,10]
[406770080,1772171442845,-1250.5,0.00036524,10]
[406770081,1772171442854,-5000.0,0.00036526,10]
[406770082,1772171442863,-5000.0,0.00036537,10]
[406770083,1772171442872,-5000.0,0.00036558,10]
[406770084,1772171442882,-25000.0,0.00036577,10]
[406770085,1772171442891,-504.0,0.00036593,21]
[406770086,1772171442900,-1657.9,0.0003664,10]
[406770087,1772171442909,-5000.0,0.00036652,10]
[406770089,1772171442919,-2518.0,0.00036659,10]
[406770091,1772171442928,-25000.0,0.00036668,10]
[406770093,1772171442937,-5000.0,0.00036683,10]
[406770094,1772171442947,-253.271,0.00036688,30]
[406770095,1772171442956,-5000.0,0.00036711,10]
[406770096,1772171442965,-5000.0,0.00036799,10]
[406770097,1772171442974,-5000.0,0.00036831,10]
[406770098,1772171442983,-3577.25,0.00036846,10]
[406770099,1772171442992,-1250.51,0.0003685,10]
[406770100,1772171443001,-1698.94,0.0003686,10]
[406770101,1772171443010,-5000.0,0.0003686,10]
[406770102,1772171443021,-253.271,0.00036888,30]
[406770103,1772171443032,-844.2366,0.00036888,7]
[406770104,1772171443042,-25000.0,0.00036913,10]
[406770105,1772171443051,-5000.0,0.00036959,10]
[406770106,1772171443060,-174.00015664,0.00037,10]
[406770107,1772171443069,-253.271,0.00037088,30]
[406770108,1772171443078,-6180.31,0.000371,14]
[406770109,1772171443087,-4728.22,0.000371,14]
[406770110,1772171443097,-188.34492417,0.000372,120]
[406770111,1772171443106,-188.34492417,0.000372,120]
[406770112,1772171443115,-199.86,0.0003726,120]
[406770113,1772171443124,-253.271,0.00037288,30]
[406770114,1772171443134,-4713.87839038,0.00037364,2]
[406770115,1772171443147,-1340.0,0.00037422,2]
[406770116,1772171443157,-1041.0,0.00037422,2]
[406770117,1772171443167,-618.0,0.00037422,2]
[406770118,1772171443175,-3497.0,0.00037422,2]
[406770119,1772171443186,-1277.0,0.00037422,2]
[406770120,1772171443195,-921.0,0.00037422,2]
[406770121,1772171443204,-413.0,0.00037422,2]
[406770122,1772171443214,-253.271,0.00037488,30]
[406770123,1772171443223,-253.271,0.00037688,30]
[406770124,1772171443234,-10192.36,0.000377,2]
[406770125,1772171443244,-1439.46,0.000377,14]
[406770126,1772171443253,-1150.585,0.00037731,49]
[406770127,1772171443262,-298.651,0.00037731,49]
[406770128,1772171443273,-1040.2,0.0003781,7]
[406770129,1772171443283,-151.0,0.00037884,14]
[406770130,1772171443292,-500.0,0.00037886,2]
[406770131,1772171443301,-69717.47646364,0.00037887,7]
[406770132,1772171443313,-151.0,0.00037887,31]
[406770133,1772171443322,-294.633956,0.00037887,31]
[406770134,1772171443332,-156.704488,0.00037887,31]
[406770135,1772171443341,-151.0,0.00037887,31]
[406770136,1772171443351,-151.0,0.00037887,31]
[406770137,1772171443360,-151.0,0.00037887,7]
[406770138,1772171443369,-151.0,0.00037887,7]
[406770139,1772171443512,-151.0,0.00037887,7]
[406770140,1772171443540,-151.074617,0.00037887,7]
[406770141,1772171443549,-339.041596,0.00037887,31]
[406770142,1772171443559,-339.041596,0.00037887,31]
[406770143,1772171443568,-339.041596,0.00037887,31]
[406770144,1772171443577,-339.041596,0.00037887,31]
[406770145,1772171443586,-226.552612,0.00037887,31]
[406770146,1772171443595,-219.619465,0.00037887,31]
[406770147,1772171443604,-151.0,0.00037887,31]
[406770148,1772171443613,-151.0,0.00037887,31]
[406770149,1772171443623,-253.271,0.00037888,30]
[406770150,1772171443632,-174.00015664,0.00038,7]
[406770151,1772171443641,-179.72,0.00038034,30]
[406770152,1772171443650,-2405.75,0.00038034,30]
[406770153,1772171443659,-151.0,0.00038034,31]
[406770154,1772171443668,-253.271,0.00038088,30]
[406770155,1772171443677,-882.46526268,0.000381,33]
[406770156,1772171443686,-150.0,0.00038252,2]
[406770157,1772171443695,-253.271,0.00038288,30]
[406770158,1772171443704,-237.37622037,0.0003838,5]
[406770159,1772171443713,-253.271,0.00038488,30]
[406770160,1772171443722,-1040.2,0.00038516,7]
[406770161,1772171443731,-6180.31,0.000386,14]
[406770162,1772171443740,-4728.22,0.000386,14]
[406770163,1772171443749,-151.0,0.000386,120]
[406770164,1772171443758,-151.0,0.000386,120]
[406770165,1772171443767,-151.0,0.000386,120]
[406770166,1772171443776,-151.0,0.000386,120]
[406770167,1772171443785,-201.803802,0.000386,120]
[406770168,1772171443795,-201.803802,0.000386,120]
[406770169,1772171443804,-201.803802,0.000386,120]
[406770170,1772171443813,-201.803802,0.000386,120]
[406770171,1772171443822,-151.0,0.000386,120]
[406770172,1772171443831,-151.0,0.000386,120]
[406770173,1772171443841,-151.0,0.000386,120]
[406770174,1772171443850,-253.271,0.00038688,30]
[406770175,1772171443859,-1000.0,0.00038904,5]
[406770176,1772171443870,-2020.0,0.00039,7]
[406770177,1772171443879,-253.271,0.00039088,30]
[406770178,1772171443889,-10192.36,0.000391,30]
[406770179,1772171443899,-1439.46,0.000391,14]
[406770180,1772171443908,-500.0,0.00039198,2]
[406770181,1772171443917,-500.0,0.00039198,2]
[406770182,1772171443927,-500.0,0.00039198,2]
[406770183,1772171443936,-500.0,0.00039198,2]
[406770184,1772171443945,-500.0,0.00039198,2]
[406770185,1772171443955,-500.0,0.00039198,2]
[406770186,1772171443964,-500.0,0.00039198,2]
[406770187,1772171443973,-500.0,0.00039198,2]
[406770188,1772171443983,-500.0,0.00039198,2]
[406770189,1772171443993,-500.0,0.00039198,2]
[406770190,1772171444003,-500.0,0.00039198,2]
[406770191,1772171444012,-500.0,0.00039198,2]
[406770192,1772171444021,-500.0,0.00039198,2]
[406770193,1772171444031,-500.0,0.00039198,2]
[406770194,1772171444040,-500.0,0.00039198,2]
[406770195,1772171444049,-500.0,0.00039198,2]
[406770196,1772171444058,-500.0,0.00039198,2]
[406770197,1772171444067,-500.0,0.00039198,2]
[406770198,1772171444077,-500.0,0.00039198,2]
[406770199,1772171444087,-500.0,0.00039198,2]
[406770200,1772171444096,-500.0,0.00039198,2]
[406770201,1772171444105,-500.0,0.00039198,2]
[406770202,1772171444114,-500.0,0.00039198,2]
[406770203,1772171444123,-500.0,0.00039198,2]
[406770204,1772171444132,-500.0,0.00039198,2]
[406770205,1772171444143,-500.0,0.00039198,2]
[406770206,1772171444154,-500.0,0.00039198,2]
[406770207,1772171444163,-500.0,0.00039198,2]
[406770208,1772171444174,-500.0,0.00039198,2]
[406770209,1772171444185,-500.0,0.00039198,2]
[406770210,1772171444195,-500.0,0.00039198,2]
[406770211,1772171444205,-500.0,0.00039198,2]
[406770212,1772171444217,-500.0,0.00039198,2]
[406770213,1772171444226,-500.0,0.00039198,2]
[406770214,1772171444236,-500.0,0.00039198,2]
[406770215,1772171444246,-500.0,0.00039198,2]
[406770216,1772171444256,-500.0,0.00039198,2]
[406770217,1772171444265,-500.0,0.00039198,2]
[406770218,1772171444275,-500.0,0.00039198,2]
[406770219,1772171444284,-500.0,0.00039198,2]
[406770220,1772171444294,-500.0,0.00039198,2]
[406770221,1772171444304,-500.0,0.00039198,2]
[406770222,1772171444313,-500.0,0.00039198,2]
[406770223,1772171444322,-500.0,0.00039198,2]
[406770224,1772171444332,-500.0,0.00039198,2]
[406770225,1772171444341,-500.0,0.00039198,2]
[406770226,1772171444351,-500.0,0.00039198,2]
[406770227,1772171444360,-427.0,0.00039198,2]
[406770228,1772171444369,-1040.2,0.00039222,30]
[406770229,1772171444379,-253.271,0.00039288,30]
[406770230,1772171444388,-412.74,0.00039366,30]
[406770231,1772171444397,-253.271,0.00039488,30]
[406770232,1772171444407,-302.55360756,0.00039583,30]
[406770233,1772171444416,-150.0,0.00039583,30]
[406770234,1772171444425,-201.9525,0.00039674,14]
[406770235,1772171444434,-253.271,0.00039688,30]
[406770236,1772171444444,-504.0,0.00039694,24]
[406770237,1772171444453,-253.271,0.00039888,30]
[406770238,1772171444462,-1040.2,0.00039928,30]
[406770239,1772171444472,-385.96002226,0.0004,5]
[406770240,1772171444481,-1622.81193883,0.0004,120]
[406770241,1772171444492,-215.8,0.0004,120]
[406770242,1772171444501,-417.12,0.0004,120]
[406770243,1772171444511,-4038.47,0.0004,120]
[406770244,1772171444520,-956.7,0.0004,120]
[406770245,1772171444529,-426.48,0.0004,120]
[406770246,1772171444539,-156.0,0.0004,120]
[406770247,1772171444548,-152.0,0.0004,120]
[406770248,1772171444558,-150.69,0.0004,2]
[406770249,1772171444568,-150.69,0.0004,2]
[406770250,1772171444578,-150.69,0.0004,2]
[406770251,1772171444587,-150.69,0.0004,2]
[406770252,1772171444596,-150.69,0.0004,2]
[406770253,1772171444605,-150.69,0.0004,2]
[406770254,1772171444615,-150.69,0.0004,2]
[406770255,1772171444624,-150.69,0.0004,2]
[406770256,1772171444633,-150.69,0.0004,2]
[406770257,1772171444644,-150.69,0.0004,2]
[406770258,1772171444654,-150.69,0.0004,2]
[406770259,1772171444663,-150.69,0.0004,2]
[406770260,1772171444672,-150.69,0.0004,2]
[406770261,1772171444682,-150.69,0.0004,2]
[406770262,1772171444691,-150.69,0.0004,2]
[406770263,1772171444701,-150.69,0.0004,2]
[406770264,1772171444710,-150.69,0.0004,2]
[406770265,1772171444719,-150.69,0.0004,2]
[406770266,1772171444728,-150.69,0.0004,2]
[406770267,1772171444738,-150.69,0.0004,2]
[406770268,1772171444748,-150.69,0.0004,2]
[406770269,1772171444758,-150.69,0.0004,2]
[406770270,1772171444767,-150.69,0.0004,2]
[406770271,1772171444776,-150.69,0.0004,2]
[406770272,1772171444786,-150.69,0.0004,2]
[406770273,1772171444796,-150.69,0.0004,2]
[406770274,1772171444806,-150.69,0.0004,2]
[406770275,1772171444815,-150.69,0.0004,2]
[406770276,1772171444825,-150.69,0.0004,2]
[406770277,1772171444834,-150.69,0.0004,2]
[406770278,1772171444843,-150.69,0.0004,2]
[406770279,1772171444852,-150.69,0.0004,2]
[406770280,1772171444862,-150.69,0.0004,2]
[406770281,1772171444871,-150.69,0.0004,2]
[406770282,1772171444882,-150.69,0.0004,2]
[406770283,1772171444891,-150.69,0.0004,2]
[406770284,1772171444901,-150.69,0.0004,2]
[406770285,1772171444910,-150.69,0.0004,2]
[406770286,1772171444919,-150.69,0.0004,2]
[406770287,1772171444928,-150.69,0.0004,2]
[406770288,1772171444938,-150.69,0.0004,2]
[406770289,1772171444947,-150.69,0.0004,2]
[406770290,1772171444955,-150.69,0.0004,2]
[406770291,1772171444965,-150.69,0.0004,2]
[406770292,1772171444974,-150.69,0.0004,2]
[406770293,1772171444983,-150.69,0.0004,2]
[406770294,1772171444994,-150.69,0.0004,2]
[406770295,1772171445003,-253.271,0.00040088,30]
[406770296,1772171445013,-2000.0,0.000401,2]
[406770297,1772171445022,-6180.31,0.000401,14]
[406770298,1772171445032,-4728.22,0.000401,14]
[406770299,1772171445041,-214.0,0.0004013,2]
[406770300,1772171445051,-150.0,0.00040165,2]
[406770301,1772171445060,-201.9525,0.00040222,14]
[406770302,1772171445070,-209.99304853,0.00040269,120]
[406770303,1772171445079,-222.28872477,0.00040269,120]
[406770304,1772171445088,-154.49167072,0.00040269,120]
[406770305,1772171445098,-253.271,0.00040288,30]
[406770306,1772171445107,-1041.0,0.00040422,2]
[406770307,1772171445117,-921.0,0.00040422,2]
[406770308,1772171445126,-413.0,0.00040422,2]
[406770309,1772171445138,-253.271,0.00040488,30]
[406770310,1772171445154,-2141.72334736,0.00040504,28]
[406770311,1772171445163,-1040.2,0.00040634,30]
[406770312,1772171445175,-253.271,0.00040688,30]
[406770313,1772171445186,-10192.36,0.000407,30]
[406770314,1772171445196,-1439.46,0.000407,14]
[406770315,1772171445206,-201.9525,0.0004077,14]
[406770316,1772171445217,-4713.87839038,0.00040824,15]
[406770317,1772171445227,-253.271,0.00040888,30]
[406770318,1772171445238,-151.0,0.00040921,14]
[406770319,1772171445248,-500.0,0.00040923,2]
[406770320,1772171445257,-500.0,0.00040923,2]
[406770322,1772171445266,-500.0,0.00040923,2]
[406770324,1772171445275,-500.0,0.00040923,2]
[406770325,1772171445285,-872107.1029299,0.00040924,2]
[406770326,1772171445295,-16645.4538269,0.00040924,2]
[406770327,1772171445305,-238013.0535007,0.00040924,2]
[406770328,1772171445315,-151.0,0.00040924,120]
[406770329,1772171445324,-151.0,0.00040924,120]
[406770330,1772171445334,-151.0,0.00040924,120]
[406770331,1772171445343,-156.01033,0.00040924,120]
[406770332,1772171445353,-201.803802,0.00040924,120]
[406770333,1772171445362,-201.803802,0.00040924,120]
[406770334,1772171445371,-201.803802,0.00040924,120]
[406770335,1772171445381,-201.803802,0.00040924,120]
[406770336,1772171445390,-151.0,0.00040924,120]
[406770337,1772171445399,-151.0,0.00040924,120]
[406770338,1772171445408,-151.0,0.00040924,120]
[406770339,1772171445417,-151.0,0.00040924,120]
[406770340,1772171445426,-151.0,0.00040924,120]
[406770341,1772171445436,-151.0,0.00040924,120]
[406770342,1772171445445,-151.0,0.00040924,7]
[406770343,1772171445454,-151.0,0.00040924,7]
[406770344,1772171445464,-151.0,0.00040924,7]
[406770345,1772171445473,-339.041596,0.00040924,120]
[406770346,1772171445483,-339.041596,0.00040924,120]
[406770347,1772171445492,-339.041596,0.00040924,120]
[406770348,1772171445502,-339.041596,0.00040924,120]
[406770349,1772171445511,-151.0,0.00040924,120]
[406770350,1772171445520,-151.0,0.00040924,120]
[406770351,1772171445529,-202975.0,0.0004095,60]
[406770352,1772171445539,-301.88,0.00040969,65]
[406770353,1772171445548,-1238.70101632,0.00041,30]
[406770354,1772171445557,-253.271,0.00041088,30]
[406770355,1772171445566,-300.0,0.00041096,10]
[406770356,1772171445576,-150.0,0.00041096,10]
[406770357,1772171445585,-800.0,0.00041096,13]
[406770358,1772171445594,-800.0,0.00041096,13]
[406770359,1772171445603,-800.0,0.00041096,13]
[406770360,1772171445613,-800.0,0.00041096,13]
[406770361,1772171445622,-800.0,0.00041096,13]
[406770362,1772171445631,-800.0,0.00041096,13]
[406770363,1772171445641,-800.0,0.00041096,13]
[406770364,1772171445651,-800.0,0.00041096,13]
[406770365,1772171445661,-800.0,0.00041096,13]
[406770366,1772171445670,-800.0,0.00041096,13]
[406770367,1772171445681,-800.0,0.00041096,13]
[406770368,1772171445691,-800.0,0.00041096,13]
[406770369,1772171445702,-800.0,0.00041096,13]
[406770370,1772171445711,-800.0,0.00041096,13]
[406770371,1772171445720,-800.0,0.00041096,13]
[406770372,1772171445729,-800.0,0.00041096,13]
[406770373,1772171445739,-800.0,0.00041096,13]
[406770374,1772171445748,-800.0,0.00041096,13]
[406770375,1772171445758,-800.0,0.00041096,13]
[406770376,1772171445768,-800.0,0.00041096,13]
[406770377,1772171445778,-800.0,0.00041096,13]
[406770378,1772171445787,-800.0,0.00041096,13]
[406770379,1772171445798,-800.0,0.00041096,13]
[406770380,1772171445809,-800.0,0.00041096,13]
[406770381,1772171445862,-800.0,0.00041096,13]
[406770382,1772171445871,-800.0,0.00041096,13]
[406770383,1772171445880,-800.0,0.00041096,13]
[406770384,1772171445890,-800.0,0.00041096,13]
[406770385,1772171445899,-800.0,0.00041096,13]
[406770386,1772171445911,-800.0,0.00041096,13]
[406770387,1772171445920,-800.0,0.00041096,13]
[406770388,1772171445929,-800.0,0.00041096,13]
[406770389,1772171445939,-800.0,0.00041096,13]
[406770390,1772171445947,-800.0,0.00041096,13]
[406770391,1772171445956,-800.0,0.00041096,13]
[406770392,1772171445965,-800.0,0.00041096,13]
[406770393,1772171445974,-800.0,0.00041096,13]
[406770394,1772171445983,-800.0,0.00041096,13]
[406770395,1772171445994,-800.0,0.00041096,13]
[406770396,1772171446003,-800.0,0.00041096,13]
[406770397,1772171446012,-800.0,0.00041096,13]